fUSD/lending_fUSD_20260226
["ID","MTS","AMOUNT","RATE_DAILY","PERIOD"]
[406744874,1772140247014,-5983.0,0.00015811,2]
[406744875,1772140247023,-32771.32172217,0.00017,2]
[406744876,1772140247033,-173.95657067,0.00017,7]
[406744877,1772140247042,-160.0,0.00017,7]
[406744878,1772140247051,-300.0,0.00017,2]
[406744879,1772140247060,-151.0,0.00017,2]
[406744880,1772140247070,-271.472129,0.00017,2]
[406744881,1772140247080,-271.472129,0.00017,2]
[406744882,1772140247089,-271.472129,0.00017,2]
[406744883,1772140247098,-271.472134,0.00017,2]
[406744884,1772140247108,-151.0,0.00017,2]
[406744885,1772140247117,-151.0,0.00017,2]
[406744886,1772140247126,-151.0,0.00017,2]
[406744887,1772140247135,-1212.0,0.0001704,2]
[406744888,1772140247144,-2844.0,0.0001704,2]
[406744889,1772140247153,-845.0,0.0001704,2]
[406744890,1772140247162,-500.0,0.00017041,2]
[406744891,1772140247172,-152.0,0.00017083,14]
[406744892,1772140247180,-152.01,0.00017083,14]
[406744893,1772140247190,-379.50003935,0.00017089,7]
[406744894,1772140247199,-584.89029775,0.00017096,2]
[406744895,1772140247209,-296.0,0.00017096,14]
[406744896,1772140247218,-338.98,0.00017099,2]
[406744897,1772140247229,-500.0,0.00017099,2]
[406744898,1772140247239,-500.0,0.00017099,2]
[406744899,1772140247248,-298.0,0.00017119,2]
[406744900,1772140247257,-180.0,0.0001722,7]
[406744901,1772140247266,-1000.0,0.00017246,7]
[406744902,1772140247275,-1000.0,0.0001726,2]
[406744903,1772140247284,-1774.71622433,0.00017273,2]
[406744904,1772140247293,-434.37960004,0.000173,2]
[406744905,1772140247302,-325.0,0.00017323,2]
[406744906,1772140247311,-160.0,0.0001736,2]
[406744907,1772140247320,-830.0,0.0001736,2]
[406744908,1772140247329,-160.0,0.0001736,2]
[406744909,1772140247339,-828.0,0.0001736,2]
[406744910,1772140247348,-645.15006689,0.00017363,7]
[406744911,1772140247357,-173.95657067,0.000175,7]
[406744912,1772140247366,-160.0,0.000175,7]
[406744913,1772140247375,-300.0,0.000175,6]
[406744914,1772140247388,-1000.0,0.00017534,2]
[406744915,1772140247396,-204.0,0.00017535,7]
[406744916,1772140247405,-300.0,0.000176,6]
[406744917,1772140247415,-152.0,0.00017631,14]
[406744918,1772140247425,-152.01,0.00017631,14]
[406744919,1772140247434,-537.62505575,0.00017637,7]
[406744920,1772140247443,-267.0,0.0001765,21]
[406744921,1772140247454,-160.0,0.0001768,2]
[406744922,1772140247466,-190.0,0.0001768,2]
[406744923,1772140247475,-319.0,0.0001768,2]
[406744924,1772140247486,-785.31942984,0.000177,2]
[406744925,1772140247495,-300.0,0.000177,6]
[406744926,1772140247505,-225.0,0.00017718,14]
[406744927,1772140247515,-224.40086961,0.00017761,2]
[406744928,1772140247525,-500.0,0.00017785,2]
[406744929,1772140247533,-500.0,0.00017785,2]
[406744930,1772140247542,-500.0,0.00017799,2]
[406744931,1772140247551,-500.0,0.00017799,2]
[406744932,1772140247560,-500.0,0.00017799,2]
[406744933,1772140247569,-500.0,0.00017799,2]
[406744934,1772140247577,-500.0,0.00017799,2]
[406744935,1772140247586,-500.0,0.00017799,2]
[406744936,1772140247596,-500.0,0.00017799,2]
[406744937,1772140247606,-500.0,0.00017799,2]
[406744938,1772140247615,-500.0,0.00017799,2]
[406744939,1772140247624,-500.0,0.00017799,2]
[406744940,1772140247634,-368.2260392,0.00017799,2]
[406744941,1772140247643,-1243.0,0.000178,6]
[406744942,1772140247655,-500.0,0.00017808,2]
[406744943,1772140247664,-800.0,0.00017808,2]
[406744944,1772140247673,-1000.0,0.00017808,2]
[406744945,1772140247682,-429.07661504,0.0001782,10]
[406744946,1772140247691,-500.0,0.00017829,2]
[406744947,1772140247700,-500.0,0.00017863,2]
[406744948,1772140247710,-11849.06322904,0.0001789,2]
[406744949,1772140247719,-1226.81574695,0.0001789,2]
[406744950,1772140247729,-500.0,0.0001789,2]
[406744951,1772140247739,-500.0,0.0001789,2]
[406744952,1772140247749,-239.25706158,0.000179,2]
[406744953,1772140247758,-694.94041654,0.000179,2]
[406744954,1772140247767,-231.01909341,0.000179,2]
[406744955,1772140247776,-19085.27339278,0.000179,2]
[406744956,1772140247785,-2858.14238548,0.000179,2]
[406744957,1772140247794,-500.0,0.00017918,2]
[406744958,1772140247803,-500.0,0.0001797,2]
[406744959,1772140247813,-1000.0,0.0001797,2]
[406744960,1772140247822,-500.0,0.0001797,2]
[406744961,1772140247832,-1000.0,0.0001797,2]
[406744962,1772140247841,-500.0,0.0001797,2]
[406744963,1772140247850,-1000.0,0.0001797,2]
[406744964,1772140247859,-500.0,0.0001797,2]
[406744965,1772140247868,-1000.0,0.0001797,2]
[406744966,1772140247877,-500.0,0.0001797,2]
[406744967,1772140247886,-1000.0,0.0001797,2]
[406744968,1772140247895,-631.8277679,0.0001797,2]
[406744969,1772140247904,-1000.0,0.0001797,2]
[406744970,1772140247913,-1000.0,0.0001797,2]
[406744971,1772140247923,-1569.43003623,0.0001797,2]
[406744972,1772140247933,-5800.0,0.00017972,2]
[406744973,1772140247942,-500.0,0.00017972,2]
[406744974,1772140247951,-169.4350314,0.00017973,2]
[406744975,1772140247960,-302.70589394,0.00017973,2]
[406744976,1772140247969,-500.0,0.00017973,2]
[406744977,1772140247978,-500.0,0.00017973,2]
[406744978,1772140247987,-500.0,0.00017973,2]
[406744979,1772140247996,-500.0,0.00017979,2]
[406744980,1772140248005,-44076.69971207,0.0001798,2]
[406744981,1772140248013,-5800.0,0.0001798,2]
[406744982,1772140248023,-5800.0,0.00017989,2]
[406744983,1772140248033,-758.24459979,0.0001799,2]
[406744984,1772140248041,-352.46850117,0.0001799,2]
[406744985,1772140248050,-25000.0,0.00017992,3]
[406744986,1772140248060,-30000.0,0.00017992,2]
[406744987,1772140248069,-27477.82493153,0.00017992,3]
[406744988,1772140248078,-14198.81885487,0.00017992,4]
[406744989,1772140248087,-25000.0,0.00017993,3]
[406744990,1772140248097,-17608.5046944,0.00017993,3]
[406744991,1772140248106,-312.24588941,0.00017995,7]
[406744992,1772140248115,-5800.0,0.00017997,2]
[406744993,1772140248125,-500.0,0.00017998,2]
[406744994,1772140248135,-500.0,0.00017998,2]
[406744995,1772140248144,-2328.43325067,0.00017998,2]
[406744996,1772140248154,-5469.23009495,0.00017999,2]
[406744997,1772140248163,-6762.62351954,0.00017999,3]
[406744998,1772140248172,-500.0,0.00017999,2]
[406744999,1772140248181,-500.0,0.00017999,2]
[406745000,1772140248190,-500.0,0.00017999,2]
[406745001,1772140248200,-500.0,0.00017999,2]
[406745002,1772140248209,-500.0,0.00017999,2]
[406745003,1772140248219,-177.84,0.00017999,2]
[406745004,1772140248229,-500.0,0.00017999,2]
[406745005,1772140248238,-500.0,0.00017999,2]
[406745006,1772140248247,-500.0,0.00017999,2]
[406745007,1772140248257,-500.0,0.00017999,2]
[406745008,1772140248266,-500.0,0.00017999,2]
[406745009,1772140248276,-500.0,0.00017999,2]
[406745010,1772140248287,-500.0,0.00017999,2]
[406745011,1772140248296,-500.0,0.00017999,2]
[406745012,1772140248306,-500.0,0.00017999,2]
[406745013,1772140248317,-500.0,0.00017999,2]
[406745014,1772140248326,-500.0,0.00017999,2]
[406745015,1772140248336,-585.34193538,0.00017999,2]
[406745016,1772140248346,-300.0,0.00017999,2]
[406745017,1772140248355,-662.41100623,0.00017999,2]
[406745018,1772140248364,-150.0,0.00017999,2]
[406745019,1772140248374,-155.07011647,0.00017999,2]
[406745020,1772140248383,-934903.1893019,0.00018,2]
[406745021,1772140248394,-666528.48514885,0.00018,2]
[406745022,1772140248405,-269533.3842721,0.00018,2]
[406745023,1772140248418,-670.59943,0.00018,2]
[406745024,1772140248439,-1515.1025,0.00018,2]
[406745025,1772140248685,-649.48481584,0.00018,2]
[406745026,1772140248701,-151.0,0.0001312,2]
[406745027,1772140248711,-41234.8502866,0.00018,2]
[406745028,1772140248722,-4344.85172635,0.00018,2]
[406745029,1772140248733,-443.4506406,0.00018,2]
[406745030,1772140248745,-1365.94,0.00018,2]
[406745031,1772140248768,-330.235,0.00018,2]
[406745032,1772140248780,-6855.84869124,0.00018,2]
[406745033,1772140248898,-188.37393412,0.00013699,2]
[406745034,1772140248908,-13921.56198637,0.00018,2]
[406745035,1772140248919,-1062.67043921,0.00018,2]
[406745036,1772140248931,-3949.06120022,0.00018,2]
[406745048,1772141432208,-417.003,8.391e-05,2]
[406745049,1772141432218,-195.0,8.392e-05,2]
[406745050,1772141432229,-463.437818,8.394e-05,2]
[406745051,1772141432238,-195.0,8.468e-05,2]
[406745052,1772141432249,-195.0,8.468e-05,2]
[406745053,1772141432258,-195.0,8.468e-05,2]
[406745054,1772141432267,-284.26,8.53e-05,2]
[406745055,1772141432277,-188.09299601,8.53e-05,2]
[406745056,1772141432287,-1093.81022568,8.561e-05,2]
[406745057,1772141432301,-106.18977432,8.561e-05,2]
[406745058,1772141432310,-150.0,8.561e-05,2]
[406745059,1772141432320,-500.0,8.562e-05,2]
[406745061,1772141432329,-31.0891649,8.562e-05,2]
[406745063,1772141432340,-254.14013485,8.562e-05,2]
[406745065,1772141432351,-214.77070025,8.562e-05,2]
[406745067,1772141432361,-43.88578875,8.562e-05,2]
[406745069,1772141432372,-583.45397662,8.562e-05,2]
[406745070,1772141432382,-49.41266438,8.562e-05,2]
[406745074,1772141438212,-577.92710099,8.562e-05,2]
[406745075,1772141438232,-500.0,8.562e-05,2]
[406745076,1772141438242,-627.33976537,8.562e-05,2]
[406745077,1772141438252,-627.33976537,8.562e-05,2]
[406745078,1772141438262,-500.0,8.562e-05,2]
[406745079,1772141438271,-627.33976537,8.562e-05,2]
[406745080,1772141438281,-627.33976537,8.562e-05,2]
[406745081,1772141438290,-233.95971939,8.562e-05,2]
[406745082,1772141438301,-627.33976537,8.562e-05,2]
[406745083,1772141438310,-627.33976537,8.562e-05,2]
[406745084,1772141438319,-627.33976537,8.562e-05,2]
[406745085,1772141438329,-627.33976537,8.562e-05,2]
[406745086,1772141438339,-627.33976537,8.562e-05,2]
[406745087,1772141438349,-627.33976537,8.562e-05,2]
[406745088,1772141438358,-627.33976537,8.562e-05,2]
[406745089,1772141438368,-627.33976537,8.562e-05,2]
[406745090,1772141438378,-627.33976537,8.562e-05,2]
[406745091,1772141438388,-627.33976537,8.562e-05,2]
[406745092,1772141438398,-627.33976537,8.562e-05,2]
[406745093,1772141438408,-627.33976537,8.562e-05,2]
[406745094,1772141438418,-627.33976537,8.562e-05,2]
[406745095,1772141438428,-627.33976537,8.562e-05,2]
[406745096,1772141438438,-627.33976537,8.562e-05,2]
[406745097,1772141438448,-627.33976537,8.562e-05,2]
[406745098,1772141438459,-627.33976537,8.562e-05,2]
[406745099,1772141438469,-627.33976537,8.562e-05,2]
[406745100,1772141438478,-627.33976537,8.562e-05,2]
[406745101,1772141438488,-627.33976537,8.562e-05,2]
[406745102,1772141438498,-627.33976537,8.562e-05,2]
[406745103,1772141438508,-627.33976537,8.562e-05,2]
[406745104,1772141438518,-627.33976537,8.562e-05,2]
[406745105,1772141438528,-627.33976537,8.562e-05,2]
[406745106,1772141438538,-627.33976537,8.562e-05,2]
[406745108,1772141438548,-627.33976537,8.562e-05,2]
[406745109,1772141438557,-627.33976537,8.562e-05,2]
[406745110,1772141438568,-627.33976537,8.562e-05,2]
[406745111,1772141438581,-627.33976537,8.562e-05,2]
[406745112,1772141438591,-627.33976537,8.562e-05,2]
[406745113,1772141438601,-627.33976537,8.562e-05,2]
[406745115,1772141438610,-627.33976537,8.562e-05,2]
[406745117,1772141438620,-627.33976537,8.562e-05,2]
[406745119,1772141438630,-627.33976537,8.562e-05,2]
[406745121,1772141438639,-627.33976537,8.562e-05,2]
[406745123,1772141438649,-627.33976537,8.562e-05,2]
[406745125,1772141438658,-627.33976537,8.562e-05,2]
[406745127,1772141438667,-627.33976537,8.562e-05,2]
[406745129,1772141438677,-627.33976537,8.562e-05,2]
[406745131,1772141438686,-627.33976537,8.562e-05,2]
[406745133,1772141438696,-627.33976537,8.562e-05,2]
[406745135,1772141438709,-627.33976537,8.562e-05,2]
[406745137,1772141438719,-627.33976537,8.562e-05,2]
[406745139,1772141438729,-627.33976537,8.562e-05,2]
[406745141,1772141438738,-627.33976537,8.562e-05,2]
[406745143,1772141438750,-500.0,8.562e-05,2]
[406745145,1772141438759,-166.45402947,8.562e-05,2]
[406745148,1772141438769,-886.13774701,8.562e-05,2]
[406745150,1772141438785,-886.13774701,8.562e-05,2]
[406745152,1772141438795,-886.13774701,8.562e-05,2]
[406745154,1772141438804,-886.13774701,8.562e-05,2]
[406745156,1772141438814,-886.13774701,8.562e-05,2]
[406745158,1772141438824,-886.13774701,8.562e-05,2]
[406745160,1772141438834,-886.13774701,8.562e-05,2]
[406745162,1772141438844,-886.13774701,8.562e-05,2]
[406745164,1772141438854,-886.13774701,8.562e-05,2]
[406745166,1772141438864,-886.13774701,8.562e-05,2]
[406745168,1772141438873,-886.13774701,8.562e-05,2]
[406745170,1772141438882,-886.13774701,8.562e-05,2]
[406745172,1772141438892,-886.13774701,8.562e-05,2]
[406745174,1772141438902,-886.13774701,8.562e-05,2]
[406745176,1772141438912,-886.13774701,8.562e-05,2]
[406745178,1772141438922,-886.13774701,8.562e-05,2]
[406745180,1772141438931,-886.13774701,8.562e-05,2]
[406745182,1772141438941,-886.13774701,8.562e-05,2]
[406745183,1772141438951,-886.13774701,8.562e-05,2]
[406745184,1772141438960,-886.13774701,8.562e-05,2]
[406745185,1772141438970,-886.13774701,8.562e-05,2]
[406745186,1772141438983,-886.13774701,8.562e-05,2]
[406745187,1772141438993,-886.13774701,8.562e-05,2]
[406745188,1772141439003,-886.13774701,8.562e-05,2]
[406745189,1772141439013,-886.13774701,8.562e-05,2]
[406745190,1772141439023,-886.13774701,8.562e-05,2]
[406745191,1772141439033,-886.13774701,8.562e-05,2]
[406745192,1772141439043,-886.13774701,8.562e-05,2]
[406745193,1772141439052,-886.13774701,8.562e-05,2]
[406745194,1772141439062,-886.13774701,8.562e-05,2]
[406745195,1772141439073,-886.13774701,8.562e-05,2]
[406745196,1772141439083,-886.13774701,8.562e-05,2]
[406745197,1772141439094,-886.13774701,8.562e-05,2]
[406745198,1772141439103,-886.13774701,8.562e-05,2]
[406745199,1772141439114,-886.13774695,8.562e-05,2]
[406745200,1772141439125,-886.13774695,8.562e-05,2]
[406745201,1772141439135,-229.22,8.562e-05,2]
[406745202,1772141439145,-2898.6438,8.563e-05,2]
[406745203,1772141439155,-150.99,8.563e-05,2]
[406745204,1772141439169,-299.99,8.563e-05,2]
[406745205,1772141439179,-9999.99,8.563e-05,2]
[406745206,1772141439189,-999.99,8.563e-05,2]
[406745207,1772141439198,-711036.2457,8.664e-05,2]
[406745209,1772141439210,-9999.99,8.664e-05,2]
[406745210,1772141439219,-150.99,8.664e-05,2]
[406745212,1772141439229,-8709.49,8.664e-05,2]
[406745214,1772141439238,-1905.428257,8.664e-05,2]
[406745216,1772141439248,-514.98,8.704e-05,2]
[406745218,1772141439258,-150.0,8.75e-05,2]
[406745220,1772141439267,-178.708911,8.75e-05,2]
[406745222,1772141439276,-207.417823,8.75e-05,2]
[406745224,1772141439286,-236.126735,8.75e-05,2]
[406745226,1772141439295,-264.835646,8.75e-05,2]
[406745228,1772141439305,-293.544558,8.75e-05,2]
[406745230,1772141439315,-322.25347,8.75e-05,2]
[406745232,1772141439325,-350.962381,8.75e-05,2]
[406745234,1772141439335,-379.671293,8.75e-05,2]
[406745236,1772141439345,-408.380205,8.75e-05,2]
[406745239,1772141439355,-150.0,8.75e-05,2]
[406745241,1772141439368,-293.550756,8.75e-05,2]
[406745243,1772141439378,-437.101513,8.75e-05,2]
[406745245,1772141439387,-580.65227,8.75e-05,2]
[406745247,1772141439396,-724.203027,8.75e-05,2]
[406745249,1772141439406,-867.753783,8.75e-05,2]
[406745251,1772141439417,-1011.30454,8.75e-05,2]
[406745253,1772141439426,-1154.855297,8.75e-05,2]
[406745255,1772141439436,-1298.406054,8.75e-05,2]
[406745257,1772141439445,-1441.95681,8.75e-05,2]
[406745259,1772141439455,-500.0,8.836e-05,2]
[406745261,1772141439465,-229.22,8.836e-05,2]
[406745263,1772141439475,-284.26,9.004e-05,2]
[406745265,1772141439484,-772.91,9.013e-05,2]
[406745267,1772141439494,-500.0,9.11e-05,2]
[406745269,1772141439503,-229.22,9.11e-05,2]
[406745271,1772141439513,-300.0,9.23e-05,2]
[406745273,1772141439522,-195.0,9.23e-05,2]
[406745275,1772141439532,-250.0,9.23e-05,2]
[406745277,1772141439542,-410.87669946,9.384e-05,2]
[406745279,1772141439551,-229.22,9.384e-05,2]
[406745282,1772141439563,-1680.0,9.417e-05,2]
[406745284,1772141439572,-255.0,9.417e-05,2]
[406745286,1772141439582,-284.26,9.478e-05,2]
[406745288,1772141439591,-229.23776369,9.658e-05,2]
[406745290,1772141439600,-514.98,9.792e-05,2]
[406745292,1772141439609,-284.26,9.952e-05,2]
[406745294,1772141439622,-151.0,0.0001,2]
[406745296,1772141439632,-151.0,0.0001,2]
[406745298,1772141439641,-151.0,0.0001,2]
[406745300,1772141439651,-151.0,0.0001,2]
[406745302,1772141439660,-151.0,0.0001,2]
[406745304,1772141439669,-151.0,0.0001,2]
[406745306,1772141439679,-151.0,0.0001,2]
[406745308,1772141439688,-151.0,0.0001,2]
[406745310,1772141439698,-151.0,0.0001,2]
[406745312,1772141439709,-151.0,0.0001,2]
[406745314,1772141439719,-151.0,0.0001,2]
[406745316,1772141439728,-151.0,0.0001,2]
[406745318,1772141439738,-296.91076628,0.0001,2]
[406745319,1772141439747,-151.0,0.0001,2]
[406745322,1772141439758,-151.0,0.0001,2]
[406745324,1772141439769,-151.0,0.0001,2]
[406745325,1772141439778,-151.0,0.0001,2]
[406745328,1772141439787,-151.0,0.0001,2]
[406745329,1772141439796,-151.0,0.0001,2]
[406745331,1772141439806,-151.0,0.0001,2]
[406745334,1772141439815,-151.0,0.0001,2]
[406745336,1772141439825,-151.0,0.0001,2]
[406745338,1772141439835,-151.0,0.0001,2]
[406745340,1772141439845,-151.0,0.0001,2]
[406745342,1772141439855,-151.0,0.0001,2]
[406745344,1772141439865,-151.0,0.0001,2]
[406745346,1772141439874,-151.0,0.0001,2]
[406745348,1772141439884,-151.0,0.0001,2]
[406745350,1772141439893,-151.0,0.0001,2]
[406745352,1772141439902,-151.0,0.0001,2]
[406745354,1772141439912,-151.0,0.0001,2]
[406745356,1772141439922,-151.0,0.0001,2]
[406745358,1772141439931,-151.0,0.0001,2]
[406745360,1772141439941,-463.29361104,0.0001,2]
[406745363,1772141439960,-579.297273,0.00010073,2]
[406745365,1772141439969,-507.0718689,0.000103,2]
[406745367,1772141439979,-500.0,0.000103,2]
[406745369,1772141439988,-500.0,0.000103,2]
[406745371,1772141439998,-500.0,0.000103,2]
[406745373,1772141440008,-500.0,0.000103,2]
[406745375,1772141440018,-500.0,0.000103,2]
[406745377,1772141440028,-500.0,0.000103,2]
[406745379,1772141440038,-500.0,0.000103,2]
[406745381,1772141440047,-500.0,0.000103,2]
[406745383,1772141440057,-500.0,0.000103,2]
[406745385,1772141440067,-500.0,0.000103,2]
[406745387,1772141440077,-500.0,0.000103,2]
[406745390,1772141440087,-500.0,0.000103,2]
[406745392,1772141440096,-500.0,0.000103,2]
[406745394,1772141440105,-500.0,0.000103,2]
[406745396,1772141440115,-500.0,0.000103,2]
[406745398,1772141440125,-500.0,0.000103,2]
[406745400,1772141440134,-500.0,0.000103,2]
[406745402,1772141440144,-500.0,0.000103,2]
[406745404,1772141440154,-500.0,0.000103,2]
[406745406,1772141440165,-600.0,0.000103,2]
[406745408,1772141440175,-500.0,0.000103,2]
[406745411,1772141440185,-500.0,0.000103,2]
[406745413,1772141440195,-600.0,0.000103,2]
[406745415,1772141440204,-500.0,0.000103,2]
[406745417,1772141440214,-500.0,0.000103,2]
[406745419,1772141440224,-500.0,0.000103,2]
[406745421,1772141440233,-600.0,0.000103,2]
[406745423,1772141440244,-874.11423967,0.000103,2]
[406745425,1772141440253,-500.0,0.000103,2]
[406745427,1772141440263,-600.0,0.000103,2]
[406745429,1772141440272,-600.0,0.000103,2]
[406745431,1772141440282,-600.0,0.000103,2]
[406745433,1772141440291,-600.0,0.000103,2]
[406745435,1772141440300,-500.0,0.000103,2]
[406745437,1772141440310,-600.0,0.000103,2]
[406745439,1772141440323,-500.0,0.000103,2]
[406745441,1772141440333,-500.0,0.000103,2]
[406745444,1772141440344,-600.0,0.000103,2]
[406745446,1772141440353,-860.86736991,0.000103,2]
[406745448,1772141440363,-600.0,0.000103,2]
[406745450,1772141440372,-600.0,0.000103,2]
[406745452,1772141440382,-557.04324665,0.000103,2]
[406745454,1772141440392,-500.0,0.000103,2]
[406745456,1772141440401,-600.0,0.000103,2]
[406745457,1772141440411,-500.0,0.000103,2]
[406745460,1772141440421,-600.0,0.000103,2]
[406745461,1772141440431,-500.0,0.000103,2]
[406745464,1772141440441,-500.0,0.000103,2]
[406745466,1772141440450,-800.0,0.000103,2]
[406745468,1772141440459,-500.0,0.000103,2]
[406745470,1772141440469,-500.0,0.000103,2]
[406745472,1772141440478,-500.0,0.000103,2]
[406745474,1772141440487,-500.0,0.000103,2]
[406745476,1772141440496,-500.0,0.000103,2]
[406745478,1772141440506,-500.0,0.000103,2]
[406745480,1772141440516,-500.0,0.000103,2]
[406745482,1772141440526,-1102.0,0.00010358,2]
[406745484,1772141440536,-284.26,0.00010425,2]
[406745486,1772141440545,-3489.876282,0.000105,2]
[406745488,1772141440554,-9949.730067,0.000105,2]
[406745490,1772141440564,-267.46074303,0.00010608,2]
[406745492,1772141440573,-501.35484447,0.00010829,2]
[406745494,1772141440582,-158.6599059,0.00010829,2]
[406745496,1772141440591,-500.53906536,0.00010829,2]
[406745498,1772141440600,-500.0,0.00010829,2]
[406745500,1772141440609,-500.0,0.00010829,2]
[406745502,1772141440619,-500.0,0.00010829,2]
[406745504,1772141440628,-500.28462042,0.00010829,2]
[406745506,1772141440638,-502.2030619,0.00010829,2]
[406745508,1772141440648,-500.0,0.00010829,2]
[406745509,1772141440657,-503.76454866,0.00010829,2]
[406745512,1772141440668,-166.95093045,0.00010829,2]
[406745514,1772141440677,-500.0,0.00010829,2]
[406745516,1772141440687,-500.72325527,0.00010829,2]
[406745518,1772141440696,-514.98,0.0001088,2]
[406745520,1772141440711,-284.26,0.00010899,2]
[406745522,1772141440721,-56753.0,0.000109,2]
[406745524,1772141440730,-15447.06,0.00010959,2]
[406745526,1772141440740,-250.0,0.00011087,2]
[406745528,1772141440751,-26554.27734936,0.00011099,2]
[406745530,1772141440760,-26554.27734934,0.00011099,2]
[406745532,1772141440770,-26554.27734934,0.00011099,2]
[406745534,1772141440781,-309.29654756,0.00011156,2]
[406745536,1772141440791,-7246.82,0.00011233,2]
[406745538,1772141440801,-5531.0,0.000113,3]
[406745540,1772141440810,-284.26,0.00011373,2]
[406745542,1772141440820,-1000.0,0.00011377,2]
[406745544,1772141440830,-1000.0,0.00011377,2]
[406745546,1772141440840,-700.09788063,0.00011377,2]
[406745548,1772141440849,-1000.0,0.00011377,2]
[406745550,1772141440859,-200.0,0.00011523,2]
[406745552,1772141440868,-26554.27734934,0.00011609,2]
[406745554,1772141440877,-5531.0,0.000117,5]
[406745557,1772141440887,-284.26,0.00011847,2]
[406745559,1772141440896,-1500.0,0.00011924,2]
[406745561,1772141440905,-508.26998517,0.00011924,2]
[406745562,1772141440915,-514.98,0.00011968,2]
[406745565,1772141440924,-284.26,0.00012321,2]
[406745567,1772141440934,-2000.0,0.00012472,2]
[406745569,1772141440943,-695.156727,0.00012591,2]
[406745570,1772141440952,-26554.27734934,0.00012657,2]
[406745572,1772141440962,-284.26,0.00012795,2]
[406745575,1772141440973,-5648.0,0.000129,2]
[406745577,1772141440982,-2500.0,0.0001302,2]
[406745579,1772141440991,-514.98,0.00013056,2]
[406745581,1772141441001,-151.0,0.0001312,2]
[406745583,1772141441010,-153.208343,0.0001312,2]
[406745585,1772141441020,-500.0,0.0001312,2]
[406745587,1772141441029,-500.0,0.0001312,2]
[406745589,1772141441039,-500.0,0.0001312,2]
[406745591,1772141441048,-500.0,0.0001312,2]
[406745593,1772141441058,-500.0,0.0001312,2]
[406745595,1772141441068,-500.0,0.0001312,2]
[406745597,1772141441078,-500.0,0.0001312,2]
[406745599,1772141441090,-500.0,0.0001312,2]
[406745602,1772141441100,-500.0,0.0001312,2]
[406745604,1772141441109,-500.0,0.0001312,2]
[406745606,1772141441118,-500.0,0.0001312,2]
[406745608,1772141441127,-500.0,0.0001312,2]
[406745610,1772141441137,-500.0,0.0001312,2]
[406745612,1772141441146,-500.0,0.0001312,2]
[406745614,1772141441155,-500.0,0.0001312,2]
[406745617,1772141441165,-500.0,0.0001312,2]
[406745619,1772141441174,-500.0,0.0001312,2]
[406745621,1772141441184,-500.0,0.0001312,2]
[406745623,1772141441194,-500.0,0.0001312,2]
[406745625,1772141441204,-500.0,0.0001312,2]
[406745627,1772141441213,-500.0,0.0001312,2]
[406745629,1772141441223,-500.0,0.0001312,2]
[406745631,1772141441232,-600.0,0.0001312,2]
[406745633,1772141441242,-600.0,0.0001312,2]
[406745635,1772141441251,-600.0,0.0001312,2]
[406745637,1772141441261,-502.38608045,0.0001312,2]
[406745639,1772141441270,-600.0,0.0001312,2]
[406745641,1772141441280,-799.65725384,0.0001312,2]
[406745643,1772141441289,-600.0,0.0001312,2]
[406745645,1772141441299,-600.0,0.0001312,2]
[406745646,1772141441308,-600.0,0.0001312,2]
[406745649,1772141441318,-600.0,0.0001312,2]
[406745651,1772141441327,-500.0,0.0001312,2]
[406745652,1772141441337,-600.0,0.0001312,2]
[406745654,1772141441347,-500.0,0.0001312,2]
[406745656,1772141441356,-600.0,0.0001312,2]